{"text_format":"3","workbook":"xlsx","n_sheets":29,"sheets":["русский язык","литература","математика","алгебра","геометрия","родной тат язык","родной рус язык","родная тат литер","родная рус литер","английский язык","немецкий язык","французский язык","физика","астрономия","информатика","география","биология","химия","обществознание","история России","всеобщая история","право","экономика","физ-ра","ОБЖ","технология","музыка","ИЗО","экология"],"read":"whole","date_system":"1900"}

{"sheet":"русский язык","index":0,"n_rows":8,"n_cols":30,"rows_kept":8,"merged":[[0,0,0,29],[2,0,3,0],[2,1,3,1],[2,2,2,5],[2,6,2,9],[2,10,2,13],[2,14,2,17],[2,18,2,21],[2,22,2,25],[2,26,2,29]]}
["Предмет: русский язык(2021 -2022 учебный год)"]
[]
["№","Наименование ОУ","5 класс",{"$nulls":3},"6 класс",{"$nulls":3},"7 класс",{"$nulls":3},"8 класс",{"$nulls":3},"9 класс",{"$nulls":3},"10 класс",{"$nulls":3},"11 класс"]
[null,null,"кол-во учащихся всего","кол-во ударников и отличников","успеваемость, %","качество, %","кол-во учащихся всего","кол-во ударников и отличников","успеваемость, %","качество, %","кол-во учащихся всего","кол-во ударников и отличников","успеваемость, %","качество, %","кол-во учащихся всего","кол-во ударников и отличников","успеваемость, %","качество, %","кол-во учащихся всего","кол-во ударников и отличников","успеваемость, %","качество, %","кол-во учащихся всего","кол-во ударников и отличников","успеваемость, %","качество, %","кол-во учащихся всего","кол-во ударников и отличников","успеваемость, %","качество, %"]
[null,"МБОУ \"СОШ №8\"",76,54,98.6,71,73,54,100,73.9,79,58,100,73.4,66,48,100,72.7,51,36,100,70.5,26,25,100,96,15,13,100,86.6]
[]
[]
[null,"исполнитель:"]

{"sheet":"литература","index":1,"n_rows":8,"n_cols":30,"rows_kept":8,"merged":[[0,0,0,29],[2,0,3,0],[2,1,3,1],[2,2,2,5],[2,6,2,9],[2,10,2,13],[2,14,2,17],[2,18,2,21],[2,22,2,25],[2,26,2,29]]}
["Предмет:  литература (2021 -2022 уч.год)"]
[]
["№","Наименование ОУ","5 класс",{"$nulls":3},"6 класс",{"$nulls":3},"7 класс",{"$nulls":3},"8 класс",{"$nulls":3},"9 класс",{"$nulls":3},"10 класс",{"$nulls":3},"11 класс"]
[null,null,"кол-во учащихся всего","кол-во ударников и отличников","успеваемость, %","качество, %","кол-во учащихся всего","кол-во ударников и отличников","успеваемость, %","качество, %","кол-во учащихся всего","кол-во ударников и отличников","успеваемость, %","качество, %","кол-во учащихся всего","кол-во ударников и отличников","успеваемость, %","качество, %","кол-во учащихся всего","кол-во ударников и отличников","успеваемость, %","качество, %","кол-во учащихся всего","кол-во ударников и отличников","успеваемость, %","качество, %","кол-во учащихся всего","кол-во ударников и отличников","успеваемость, %","качество, %"]
[null,"МБОУ \"СОШ №8\"",76,56,100,73.6,73,55,100,75,79,70,100,88.6,66,57,100,86,51,40,100,78,26,{"$f":"Z5/Y5*W5","v":26},100,100,15,{"$f":"AD5/AC5*AA5","v":15},100,100]
[]
[]
[null,"исполнитель:"]

{"sheet":"математика","index":2,"n_rows":7,"n_cols":18,"rows_kept":7,"merged":[[0,0,0,9],[2,0,3,0],[2,1,3,1],[2,2,2,5],[2,6,2,9],[2,10,2,13],[2,14,2,17]]}
["Предмет: математика (2021 -2022 уч.год)"]
[]
["№","Наименование ОУ","5 класс",{"$nulls":3},"6 класс",{"$nulls":3},"10 класс",{"$nulls":3},"11 класс"]
[null,null,"кол-во учащихся всего","кол-во ударников и отличников","успеваемость, %","качество, %","кол-во учащихся всего","кол-во ударников и отличников","успеваемость, %","качество, %","кол-во учащихся всего","кол-во ударников и отличников","успеваемость, %","качество, %","кол-во учащихся всего","кол-во ударников и отличников","успеваемость, %","качество, %"]
[null,"МБОУ \"СОШ №8\"",76,56,98.68,72.37,73,50,100,68.49,26,17,100,65.38,15,13,100,86.67]
[]
[null,"исполнитель:","зам. директора по УР Ларина Т.В."]

{"sheet":"алгебра","index":3,"n_rows":7,"n_cols":14,"rows_kept":7,"merged":[[0,0,0,13],[2,0,3,0],[2,1,3,1],[2,2,2,5],[2,6,2,9],[2,10,2,13]]}
["Предмет: алгебра(2021 -2022 уч.год)"]
[]
["№","Наименование ОУ","7 класс",{"$nulls":3},"8 класс",{"$nulls":3},"9 класс"]
[null,null,"кол-во учащихся всего","кол-во ударников и отличников","успеваемость, %","качество, %","кол-во учащихся всего","кол-во ударников и отличников","успеваемость, %","качество, %","кол-во учащихся всего","кол-во ударников и отличников","успеваемость, %","качество, %"]
[null,"МБОУ \"СОШ №8\"",79,52,100,65.82,66,45,100,68.18,51,31,100,60.78]
[]
[null,"исполнитель:","зам. директора по УР Ларина Т.В."]

{"sheet":"геометрия","index":4,"n_rows":7,"n_cols":14,"rows_kept":7,"merged":[[0,0,0,13],[2,0,3,0],[2,1,3,1],[2,2,2,5],[2,6,2,9],[2,10,2,13]]}
["Предмет: геометрия(2021 -2022 уч.год)"]
[]
["№","Наименование ОУ","7 класс",{"$nulls":3},"8 класс",{"$nulls":3},"9 класс"]
[null,null,"кол-во учащихся всего","кол-во ударников и отличников","успеваемость, %","качество, %","кол-во учащихся всего","кол-во ударников и отличников","успеваемость, %","качество, %","кол-во учащихся всего","кол-во ударников и отличников","успеваемость, %","качество, %"]
[null,"МБОУ \"СОШ №8\"",79,51,100,64.59,66,44,100,66.67,51,34,100,66.67]
[]
[null,"исполнитель:","зам. директора по УР Ларина Т.В."]

{"sheet":"родной тат язык","index":5,"n_rows":7,"n_cols":46,"rows_kept":7,"merged":[[0,0,0,29],[2,0,3,0],[2,1,3,1],[2,2,2,5],[2,6,2,9],[2,10,2,13],[2,14,2,17],[2,18,2,21],[2,22,2,25],[2,26,2,29],[2,30,2,33],[2,34,2,37],[2,38,2,41],[2,42,2,45]]}
["Предмет: родной (татарский) язык (2021 -2022 уч.год)"]
[]
["№","Наименование ОУ","1 класс",{"$nulls":3},"2 класс",{"$nulls":3},"3 класс",{"$nulls":3},"4 класс",{"$nulls":3},"5 класс",{"$nulls":3},"6 класс",{"$nulls":3},"7 класс",{"$nulls":3},"8 класс",{"$nulls":3},"9 класс",{"$nulls":3},"10 класс",{"$nulls":3},"11 класс"]
[null,null,"кол-во учащихся всего","кол-во ударников и отличников","успеваемость, %","качество, %","кол-во учащихся всего","кол-во ударников и отличников","успеваемость, %","качество, %","кол-во учащихся всего","кол-во ударников и отличников","успеваемость, %","качество, %","кол-во учащихся всего","кол-во ударников и отличников","успеваемость, %","качество, %","кол-во учащихся всего","кол-во ударников и отличников","успеваемость, %","качество, %","кол-во учащихся всего","кол-во ударников и отличников","успеваемость, %","качество, %","кол-во учащихся всего","кол-во ударников и отличников","успеваемость, %","качество, %","кол-во учащихся всего","кол-во ударников и отличников","успеваемость, %","качество, %","кол-во учащихся всего","кол-во ударников и отличников","успеваемость, %","качество, %","кол-во учащихся всего","кол-во ударников и отличников","успеваемость, %","качество, %","кол-во учащихся всего","кол-во ударников и отличников","успеваемость, %","качество, %"]
[null,"МБОУ \"СОШ №8\"",48,null,100,null,49,49,100,100,53,51,100,96,57,52,100,91,31,27,100,87,26,24,100,92,45,43,100,95.5,31,31,100,100,31,27,100,87,12,12,100,100,0,0,0,0]
[]
[null,"исполнитель:"]

{"sheet":"родной рус язык","index":6,"n_rows":7,"n_cols":46,"rows_kept":7,"merged":[[0,0,0,45],[2,0,3,0],[2,1,3,1],[2,2,2,5],[2,6,2,9],[2,10,2,13],[2,14,2,17],[2,18,2,21],[2,22,2,25],[2,26,2,29],[2,30,2,33],[2,34,2,37],[2,38,2,41],[2,42,2,45]]}
["Предмет: родной (русский) язык(2021 -2022 уч.год)"]
[]
["№","Наименование ОУ","1 класс",{"$nulls":3},"2 класс",{"$nulls":3},"3 класс",{"$nulls":3},"4 класс",{"$nulls":3},"5 класс",{"$nulls":3},"6 класс",{"$nulls":3},"7 класс",{"$nulls":3},"8 класс",{"$nulls":3},"9 класс",{"$nulls":3},"10 класс",{"$nulls":3},"11 класс"]
[null,null,"кол-во учащихся всего","кол-во ударников и отличников","успеваемость, %","качество, %","кол-во учащихся всего","кол-во ударников и отличников","успеваемость, %","качество, %","кол-во учащихся всего","кол-во ударников и отличников","успеваемость, %","качество, %","кол-во учащихся всего","кол-во ударников и отличников","успеваемость, %","качество, %","кол-во учащихся всего","кол-во ударников и отличников","успеваемость, %","качество, %","кол-во учащихся всего","кол-во ударников и отличников","успеваемость, %","качество, %","кол-во учащихся всего","кол-во ударников и отличников","успеваемость, %","качество, %","кол-во учащихся всего","кол-во ударников и отличников","успеваемость, %","качество, %","кол-во учащихся всего","кол-во ударников и отличников","успеваемость, %","качество, %","кол-во учащихся всего","кол-во ударников и отличников","успеваемость, %","качество, %","кол-во учащихся всего","кол-во ударников и отличников","успеваемость, %","качество, %"]
[null,"МБОУ \"СОШ №8\"",45,null,100,null,68,62,100,91,36,30,100,83,48,43,100,89.5,45,42,100,93,47,47,100,100,34,31,100,91,35,34,100,97,20,17,100,85,14,14,100,100,15,15,100,100]
[]
[null,"исполнитель:"]

{"sheet":"родная тат литер","index":7,"n_rows":7,"n_cols":46,"rows_kept":7,"merged":[[0,0,0,29],[2,0,3,0],[2,1,3,1],[2,2,2,5],[2,6,2,9],[2,10,2,13],[2,14,2,17],[2,18,2,21],[2,22,2,25],[2,26,2,29],[2,30,2,33],[2,34,2,37],[2,38,2,41],[2,42,2,45]]}
["Предмет: литературное чтение на родном (татарском) языке - 1-4 классы; родная (татарская) литература - 5-11 классы (2021 -2022 уч.год)"]
[]
["№","Наименование ОУ","1 класс",{"$nulls":3},"2 класс",{"$nulls":3},"3 класс",{"$nulls":3},"4 класс",{"$nulls":3},"5 класс",{"$nulls":3},"6 класс",{"$nulls":3},"7 класс",{"$nulls":3},"8 класс",{"$nulls":3},"9 класс",{"$nulls":3},"10 класс",{"$nulls":3},"11 класс"]
[null,null,"кол-во учащихся всего","кол-во ударников и отличников","успеваемость, %","качество, %","кол-во учащихся всего","кол-во ударников и отличников","успеваемость, %","качество, %","кол-во учащихся всего","кол-во ударников и отличников","успеваемость, %","качество, %","кол-во учащихся всего","кол-во ударников и отличников","успеваемость, %","качество, %","кол-во учащихся всего","кол-во ударников и отличников","успеваемость, %","качество, %","кол-во учащихся всего","кол-во ударников и отличников","успеваемость, %","качество, %","кол-во учащихся всего","кол-во ударников и отличников","успеваемость, %","качество, %","кол-во учащихся всего","кол-во ударников и отличников","успеваемость, %","качество, %","кол-во учащихся всего","кол-во ударников и отличников","успеваемость, %","качество, %","кол-во учащихся всего","кол-во ударников и отличников","успеваемость, %","качество, %","кол-во учащихся всего","кол-во ударников и отличников","успеваемость, %","качество, %"]
[null,"МБОУ \"СОШ №8\"",48,null,100,null,49,49,100,100,53,51,100,96,57,53,100,92.9,31,30,100,96.7,26,25,100,96,45,44,100,97.7,31,31,100,100,31,27,100,87,12,12,100,100,0,0,0,0]
[]
[null,"исполнитель:"]

{"sheet":"родная рус литер","index":8,"n_rows":7,"n_cols":46,"rows_kept":7,"merged":[[0,0,0,29],[2,0,3,0],[2,1,3,1],[2,2,2,5],[2,6,2,9],[2,10,2,13],[2,14,2,17],[2,18,2,21],[2,22,2,25],[2,26,2,29],[2,30,2,33],[2,34,2,37],[2,38,2,41],[2,42,2,45]]}
["Предмет: литературное чтение на родном (русском) языке - 1-4 классы; родная (русская) литература - 5-11 классы(2020 -2021 уч.год)"]
[]
["№","Наименование ОУ","1 класс",{"$nulls":3},"2 класс",{"$nulls":3},"3 класс",{"$nulls":3},"4 класс",{"$nulls":3},"5 класс",{"$nulls":3},"6 класс",{"$nulls":3},"7 класс",{"$nulls":3},"8 класс",{"$nulls":3},"9 класс",{"$nulls":3},"10 класс",{"$nulls":3},"11 класс"]
[null,null,"кол-во учащихся всего","кол-во ударников и отличников","успеваемость, %","качество, %","кол-во учащихся всего","кол-во ударников и отличников","успеваемость, %","качество, %","кол-во учащихся всего","кол-во ударников и отличников","успеваемость, %","качество, %","кол-во учащихся всего","кол-во ударников и отличников","успеваемость, %","качество, %","кол-во учащихся всего","кол-во ударников и отличников","успеваемость, %","качество, %","кол-во учащихся всего","кол-во ударников и отличников","успеваемость, %","качество, %","кол-во учащихся всего","кол-во ударников и отличников","успеваемость, %","качество, %","кол-во учащихся всего","кол-во ударников и отличников","успеваемость, %","качество, %","кол-во учащихся всего","кол-во ударников и отличников","успеваемость, %","качество, %","кол-во учащихся всего","кол-во ударников и отличников","успеваемость, %","качество, %","кол-во учащихся всего","кол-во ударников и отличников","успеваемость, %","качество, %"]
[null,"МБОУ \"СОШ №8\"",45,null,100,null,68,61,100,89.7,36,31,100,86,48,46,100,95.8,45,42,100,93,47,47,100,100,34,32,100,94,35,35,100,100,20,18,100,90,14,14,100,100,15,15,100,100]
[]
[null,"исполнитель:"]

{"sheet":"английский язык","index":9,"n_rows":7,"n_cols":42,"rows_kept":7,"merged":[[0,0,0,25],[2,0,3,0],[2,1,3,1],[2,2,2,5],[2,6,2,9],[2,10,2,13],[2,14,2,17],[2,18,2,21],[2,22,2,25],[2,26,2,29],[2,30,2,33],[2,34,2,37],[2,38,2,41]]}
["Предмет: английский язык(2021 -2022 уч.год)"]
[]
["№","Наименование ОУ","2 класс",{"$nulls":3},"3 класс",{"$nulls":3},"4 класс",{"$nulls":3},"5 класс",{"$nulls":3},"6 класс",{"$nulls":3},"7 класс",{"$nulls":3},"8 класс",{"$nulls":3},"9 класс",{"$nulls":3},"10 класс",{"$nulls":3},"11 класс"]
[null,null,"кол-во учащихся всего","кол-во ударников и отличников","успеваемость, %","качество, %","кол-во учащихся всего","кол-во ударников и отличников","успеваемость, %","качество, %","кол-во учащихся всего","кол-во ударников и отличников","успеваемость, %","качество, %","кол-во учащихся всего","кол-во ударников и отличников","успеваемость, %","качество, %","кол-во учащихся всего","кол-во ударников и отличников","успеваемость, %","качество, %","кол-во учащихся всего","кол-во ударников и отличников","успеваемость, %","качество, %","кол-во учащихся всего","кол-во ударников и отличников","успеваемость, %","качество, %","кол-во учащихся всего","кол-во ударников и отличников","успеваемость, %","качество, %","кол-во учащихся всего","кол-во ударников и отличников","успеваемость, %","качество, %","кол-во учащихся всего","кол-во ударников и отличников","успеваемость, %","качество, %"]
[null,"МБОУ \"СОШ №8\"",117,96,100,82,89,68,100,76,105,73,100,69.5,76,55,100,72,73,47,100,64,79,64,100,81,66,48,100,72.7,51,41,100,80,26,20,100,76.9,15,14,100,93]
[]
[null,"исполнитель:"]

{"sheet":"немецкий язык","index":10,"n_rows":7,"n_cols":22,"rows_kept":7,"merged":[[0,0,0,13],[2,0,3,0],[2,1,3,1],[2,2,2,5],[2,6,2,9],[2,10,2,13],[2,14,2,17],[2,18,2,21]]}
["Предмет: немецкий язык(2021 -2022 уч.год)"]
[]
["№","Наименование ОУ","5 класс",{"$nulls":3},"6 класс",{"$nulls":3},"7 класс",{"$nulls":3},"8 класс",{"$nulls":3},"9 класс"]
[null,null,"кол-во учащихся всего","кол-во ударников и отличников","успеваемость, %","качество, %","кол-во учащихся всего","кол-во ударников и отличников","успеваемость, %","качество, %","кол-во учащихся всего","кол-во ударников и отличников","успеваемость, %","качество, %","кол-во учащихся всего","кол-во ударников и отличников","успеваемость, %","качество, %","кол-во учащихся всего","кол-во ударников и отличников","успеваемость, %","качество, %"]
[]
[]
[null,"исполнитель:"]

{"sheet":"французский язык","index":11,"n_rows":7,"n_cols":14,"rows_kept":7,"merged":[[0,0,0,13],[2,0,3,0],[2,1,3,1],[2,2,2,5],[2,6,2,9],[2,10,2,13]]}
["Предмет: французский  язык(2021 -2022 уч.год)"]
[]
["№","Наименование ОУ","9 класс",{"$nulls":3},"10 класс",{"$nulls":3},"11 класс"]
[null,null,"кол-во учащихся всего","кол-во ударников и отличников","успеваемость, %","качество, %","кол-во учащихся всего","кол-во ударников и отличников","успеваемость, %","качество, %","кол-во учащихся всего","кол-во ударников и отличников","успеваемость, %","качество, %"]
[null,"МБОУ \"СОШ №8\"",51,44,100,86,26,26,100,100,15,15,100,100]
[]
[null,"исполнитель:"]

{"sheet":"физика","index":12,"n_rows":7,"n_cols":22,"rows_kept":7,"merged":[[0,0,0,21],[2,0,3,0],[2,1,3,1],[2,2,2,5],[2,6,2,9],[2,10,2,13],[2,14,2,17],[2,18,2,21]]}
["Предмет: физика(2021 -2022 уч.год)"]
[]
["№","Наименование ОУ","7 класс",{"$nulls":3},"8 класс",{"$nulls":3},"9 класс",{"$nulls":3},"10 класс",{"$nulls":3},"11 класс"]
[null,null,"кол-во учащихся всего","кол-во ударников и отличников","успеваемость, %","качество, %","кол-во учащихся всего","кол-во ударников и отличников","успеваемость, %","качество, %","кол-во учащихся всего","кол-во ударников и отличников","успеваемость, %","качество, %","кол-во учащихся всего","кол-во ударников и отличников","успеваемость, %","качество, %","кол-во учащихся всего","кол-во ударников и отличников","успеваемость, %","качество, %"]
[null,"МБОУ \"СОШ №8\"",79,54,100,68.35,66,57,100,86.36,51,33,100,64.71,26,7,100,26.92,15,14,100,93.33]
[]
[null,"исполнитель:","зам. директора по УР Ларина Т.В."]

{"sheet":"астрономия","index":13,"n_rows":7,"n_cols":10,"rows_kept":7,"merged":[[0,0,0,9],[2,0,3,0],[2,1,3,1],[2,2,2,5],[2,6,2,9]]}
["Предмет: астрономия(2021 -2022 уч.год)"]
[]
["№","Наименование ОУ","10 класс",{"$nulls":3},"11 класс"]
[null,null,"кол-во учащихся всего","кол-во ударников и отличников","успеваемость, %","качество, %","кол-во учащихся всего","кол-во ударников и отличников","успеваемость, %","качество, %"]
[null,"МБОУ \"СОШ №8\"",26,9,100,34.62,0,0,0,0]
[]
[null,"исполнитель:","зам. директора по УР Ларина Т.В."]

{"sheet":"информатика","index":14,"n_rows":7,"n_cols":22,"rows_kept":7,"merged":[[0,0,0,21],[2,0,3,0],[2,1,3,1],[2,2,2,5],[2,6,2,9],[2,10,2,13],[2,14,2,17],[2,18,2,21]]}
["Предмет: информатика и ИКТ(2021 -2022 уч.год)"]
[]
["№","Наименование ОУ","7 класс",{"$nulls":3},"8 класс",{"$nulls":3},"9 класс",{"$nulls":3},"10 класс",{"$nulls":3},"11 класс"]
[null,null,"кол-во учащихся всего","кол-во ударников и отличников","успеваемость, %","качество, %","кол-во учащихся всего","кол-во ударников и отличников","успеваемость, %","качество, %","кол-во учащихся всего","кол-во ударников и отличников","успеваемость, %","качество, %","кол-во учащихся всего","кол-во ударников и отличников","успеваемость, %","качество, %","кол-во учащихся всего","кол-во ударников и отличников","успеваемость, %","качество, %"]
[null,"МБОУ \"СОШ №8\"",79,73,100,92.41,66,57,100,86.36,51,35,100,68.63,26,24,100,92.31,15,{"$f":"V5/U5*S5","v":15},100,100]
[]
[null,"исполнитель:","зам. директора по УР Ларина Т.В."]

{"sheet":"география","index":15,"n_rows":7,"n_cols":30,"rows_kept":7,"merged":[[0,0,0,29],[2,0,3,0],[2,1,3,1],[2,2,2,5],[2,6,2,9],[2,10,2,13],[2,14,2,17],[2,18,2,21],[2,22,2,25],[2,26,2,29]]}
["Предмет: география"]
[{"$nulls":11},"предмет: география(2021 -2022 уч.год)"]
["№","Наименование ОУ","5 класс",{"$nulls":3},"6 класс",{"$nulls":3},"7 класс",{"$nulls":3},"8 класс",{"$nulls":3},"9 класс",{"$nulls":3},"10 класс",{"$nulls":3},"11 класс"]
[null,null,"кол-во учащихся всего","кол-во ударников и отличников","успеваемость, %","качество, %","кол-во учащихся всего","кол-во ударников и отличников","успеваемость, %","качество, %","кол-во учащихся всего","кол-во ударников и отличников","успеваемость, %","качество, %","кол-во учащихся всего","кол-во ударников и отличников","успеваемость, %","качество, %","кол-во учащихся всего","кол-во ударников и отличников","успеваемость, %","качество, %","кол-во учащихся всего","кол-во ударников и отличников","успеваемость, %","качество, %","кол-во учащихся всего","кол-во ударников и отличников","успеваемость, %","качество, %"]
[null,"МБОУ \"СОШ №8\"",76,51,100,67.11,73,45,100,61.64,79,66,100,83.54,66,48,100,72.73,51,37,100,72.55,26,22,100,84,15,15,100,100]
[]
[{"$nulls":11},"исполнитель:",null,"зам. директора по УР Ларина Т.В."]

{"sheet":"биология","index":16,"n_rows":7,"n_cols":30,"rows_kept":7,"merged":[[0,0,0,29],[2,0,3,0],[2,1,3,1],[2,2,2,5],[2,6,2,9],[2,10,2,13],[2,14,2,17],[2,18,2,21],[2,22,2,25],[2,26,2,29]]}
["Предмет: биология (2021 -2022 уч.год)"]
[]
["№","Наименование ОУ","5 класс",{"$nulls":3},"6 класс",{"$nulls":3},"7 класс",{"$nulls":3},"8 класс",{"$nulls":3},"9 класс",{"$nulls":3},"10 класс",{"$nulls":3},"11 класс"]
[null,null,"кол-во учащихся всего","кол-во ударников и отличников","успеваемость, %","качество, %","кол-во учащихся всего","кол-во ударников и отличников","успеваемость, %","качество, %","кол-во учащихся всего","кол-во ударников и отличников","успеваемость, %","качество, %","кол-во учащихся всего","кол-во ударников и отличников","успеваемость, %","качество, %","кол-во учащихся всего","кол-во ударников и отличников","успеваемость, %","качество, %","кол-во учащихся всего","кол-во ударников и отличников","успеваемость, %","качество, %","кол-во учащихся всего","кол-во ударников и отличников","успеваемость, %","качество, %"]
[null,"МБОУ \"СОШ №8\"",76,68,100,89.47,73,54,100,73.97,79,69,100,87.34,66,55,100,83.33,51,42,100,82.35,26,22,100,84.52,15,{"$f":"AD5/AC5*AA5","v":15},100,100]
[]
[null,"исполнитель:","зам. директора по УР Ларина Т.В."]

{"sheet":"химия","index":17,"n_rows":7,"n_cols":18,"rows_kept":7,"merged":[[0,0,0,17],[2,0,3,0],[2,1,3,1],[2,2,2,5],[2,6,2,9],[2,10,2,13],[2,14,2,17]]}
["Предмет: химия(2021 -2022 уч.год)"]
[]
["№","Наименование ОУ","8 класс",{"$nulls":3},"9 класс",{"$nulls":3},"10 класс",{"$nulls":3},"11 класс"]
[null,null,"кол-во учащихся всего","кол-во ударников и отличников","успеваемость, %","качество, %","кол-во учащихся всего","кол-во ударников и отличников","успеваемость, %","качество, %","кол-во учащихся всего","кол-во ударников и отличников","успеваемость, %","качество, %","кол-во учащихся всего","кол-во ударников и отличников","успеваемость, %","качество, %"]
[null,"МБОУ \"СОШ №8\"",66,45,100,68.18,51,35,100,68.63,26,21,100,80.77,15,{"$f":"R5/Q5*O5","v":15},100,100]
[]
[null,"исполнитель:","зам. директора по УР Ларина Т.В."]

{"sheet":"обществознание","index":18,"n_rows":7,"n_cols":30,"rows_kept":7,"merged":[[0,0,0,29],[2,0,3,0],[2,1,3,1],[2,2,2,5],[2,6,2,9],[2,10,2,13],[2,14,2,17],[2,18,2,21],[2,22,2,25],[2,26,2,29]]}
["Предмет: обществознание(2021-2022 уч.год)"]
[]
["№","Наименование ОУ","5 класс",{"$nulls":3},"6 класс",{"$nulls":3},"7 класс",{"$nulls":3},"8 класс",{"$nulls":3},"9 класс",{"$nulls":3},"10 класс",{"$nulls":3},"11 класс"]
[null,null,"кол-во учащихся всего","кол-во ударников и отличников","успеваемость, %","качество, %","кол-во учащихся всего","кол-во ударников и отличников","успеваемость, %","качество, %","кол-во учащихся всего","кол-во ударников и отличников","успеваемость, %","качество, %","кол-во учащихся всего","кол-во ударников и отличников","успеваемость, %","качество, %","кол-во учащихся всего","кол-во ударников и отличников","успеваемость, %","качество, %","кол-во учащихся всего","кол-во ударников и отличников","успеваемость, %","качество, %","кол-во учащихся всего","кол-во ударников и отличников","успеваемость, %","качество, %"]
[null,"МБОУ \"СОШ №8\"",76,70,100,92,73,60,100,82,79,60,100,75.9,66,55,100,83,51,40,100,78,26,22,100,84.6,15,{"$f":"AD5/AC5*AA5","v":15},100,100]
[]
[null,"исполнитель:"]

{"sheet":"история России","index":19,"n_rows":7,"n_cols":26,"rows_kept":7,"merged":[[0,0,0,25],[2,0,3,0],[2,1,3,1],[2,2,2,5],[2,6,2,9],[2,10,2,13],[2,14,2,17],[2,18,2,21],[2,22,2,25]]}
["Предмет: история России(2021- 2022 уч.год)"]
[]
["№","Наименование ОУ","6 класс",{"$nulls":3},"7 класс",{"$nulls":3},"8 класс",{"$nulls":3},"9 класс",{"$nulls":3},"10 класс",{"$nulls":3},"11 класс"]
[null,null,"кол-во учащихся всего","кол-во ударников и отличников","успеваемость, %","качество, %","кол-во учащихся всего","кол-во ударников и отличников","успеваемость, %","качество, %","кол-во учащихся всего","кол-во ударников и отличников","успеваемость, %","качество, %","кол-во учащихся всего","кол-во ударников и отличников","успеваемость, %","качество, %","кол-во учащихся всего","кол-во ударников и отличников","успеваемость, %","качество, %","кол-во учащихся всего","кол-во ударников и отличников","успеваемость, %","качество, %"]
[]
[]
[null,"исполнитель:"]

{"sheet":"всеобщая история","index":20,"n_rows":7,"n_cols":30,"rows_kept":7,"merged":[[0,0,0,29],[2,0,3,0],[2,1,3,1],[2,2,2,5],[2,6,2,9],[2,10,2,13],[2,14,2,17],[2,18,2,21],[2,22,2,25],[2,26,2,29]]}
["Предмет: всеобщая история(2021 -2022 уч.год)"]
[]
["№","Наименование ОУ","5 класс",{"$nulls":3},"6 класс",{"$nulls":3},"7 класс",{"$nulls":3},"8 класс",{"$nulls":3},"9 класс",{"$nulls":3},"10 класс",{"$nulls":3},"11 класс"]
[null,null,"кол-во учащихся всего","кол-во ударников и отличников","успеваемость, %","качество, %","кол-во учащихся всего","кол-во ударников и отличников","успеваемость, %","качество, %","кол-во учащихся всего","кол-во ударников и отличников","успеваемость, %","качество, %","кол-во учащихся всего","кол-во ударников и отличников","успеваемость, %","качество, %","кол-во учащихся всего","кол-во ударников и отличников","успеваемость, %","качество, %","кол-во учащихся всего","кол-во ударников и отличников","успеваемость, %","качество, %","кол-во учащихся всего","кол-во ударников и отличников","успеваемость, %","качество, %"]
[null,"МБОУ \"СОШ №8\"",76,62,100,81.6,73,53,100,72.6,79,56,100,70.8,66,49,100,74,51,44,100,86,26,25,100,96,15,15,100,100]
[]
[null,"исполнитель:"]

{"sheet":"право","index":21,"n_rows":7,"n_cols":10,"rows_kept":7,"merged":[[0,0,0,9],[2,0,3,0],[2,1,3,1],[2,2,2,5],[2,6,2,9]]}
["Предмет: право(2021 -2022 уч.год)"]
[]
["№","Наименование ОУ","10 класс",{"$nulls":3},"11 класс"]
[null,null,"кол-во учащихся всего","кол-во ударников и отличников","успеваемость, %","качество, %","кол-во учащихся всего","кол-во ударников и отличников","успеваемость, %","качество, %"]
[]
[]
[null,"исполнитель:"]

{"sheet":"экономика","index":22,"n_rows":7,"n_cols":10,"rows_kept":7,"merged":[[0,0,0,9],[2,0,3,0],[2,1,3,1],[2,2,2,5],[2,6,2,9]]}
["Предмет: экономика(2021 -2022 уч.год)"]
[]
["№","Наименование ОУ","10 класс",{"$nulls":3},"11 класс"]
[null,null,"кол-во учащихся всего","кол-во ударников и отличников","успеваемость, %","качество, %","кол-во учащихся всего","кол-во ударников и отличников","успеваемость, %","качество, %"]
[]
[]
[null,"исполнитель:"]

{"sheet":"физ-ра","index":23,"n_rows":10,"n_cols":30,"rows_kept":10,"merged":[[0,0,0,29],[2,0,3,0],[2,1,3,1],[2,2,2,5],[2,6,2,9],[2,10,2,13],[2,14,2,17],[2,18,2,21],[2,22,2,25],[2,26,2,29]]}
["Предмет: физическая культура(2021 -2022 уч.год)"]
[]
["№","Наименование ОУ","5 класс",{"$nulls":3},"6 класс",{"$nulls":3},"7 класс",{"$nulls":3},"8 класс",{"$nulls":3},"9 класс",{"$nulls":3},"10 класс",{"$nulls":3},"11 класс"]
[null,null,"кол-во учащихся всего","кол-во ударников и отличников","успеваемость, %","качество, %","кол-во учащихся всего","кол-во ударников и отличников","успеваемость, %","качество, %","кол-во учащихся всего","кол-во ударников и отличников","успеваемость, %","качество, %","кол-во учащихся всего","кол-во ударников и отличников","успеваемость, %","качество, %","кол-во учащихся всего","кол-во ударников и отличников","успеваемость, %","качество, %","кол-во учащихся всего","кол-во ударников и отличников","успеваемость, %","качество, %","кол-во учащихся всего","кол-во ударников и отличников","успеваемость, %","качество, %"]
[null,"МБОУ \"СОШ №8\"",76,{"$f":"F5/E5*C5","v":76},100,100,73,{"$f":"J5/I5*G5","v":73},100,100,79,{"$f":"N5/M5*K5","v":79},100,100,66,65,100,98.48,51,{"$f":"V5/U5*S5","v":51},100,100,26,{"$f":"Z5/Y5*W5","v":26},100,100,15,{"$f":"AD5/AC5*AA5","v":15},100,100]
[]
[null,"исполнитель:","зам. директора по УР Ларина Т.В."]
[]
[]
[{"$nulls":9}," "]

{"sheet":"ОБЖ","index":24,"n_rows":11,"n_cols":18,"rows_kept":11,"merged":[[0,0,0,17],[2,0,3,0],[2,1,3,1],[2,2,2,5],[2,6,2,9],[2,10,2,13],[2,14,2,17]]}
["Предмет: ОБЖ (ОВС)(2021 -2022 уч.год)"]
[]
["№","Наименование ОУ","8 класс",{"$nulls":3},"9 класс",{"$nulls":3},"10 класс",{"$nulls":3},"11 класс"]
[null,null,"кол-во учащихся всего","кол-во ударников и отличников","успеваемость, %","качество, %","кол-во учащихся всего","кол-во ударников и отличников","успеваемость, %","качество, %","кол-во учащихся всего","кол-во ударников и отличников","успеваемость, %","качество, %","кол-во учащихся всего","кол-во ударников и отличников","успеваемость, %","качество, %"]
[null,"МБОУ \"СОШ №8\"",66,66,{"v":1,"d":"100.00%"},100,51,{"$f":"J5/I5*G5","v":51},100,100,26,{"$f":"N5/M5*K5","v":26},100,100,0,0,0,0]
[]
[null,"исполнитель:","зам. директора по УР Ларина Т.В."]
[]
[]
[]
[{"$nulls":6}," "]

{"sheet":"технология","index":25,"n_rows":7,"n_cols":18,"rows_kept":7,"merged":[[0,0,0,17],[2,0,3,0],[2,1,3,1],[2,2,2,5],[2,6,2,9],[2,10,2,13],[2,14,2,17]]}
["Предмет: технология(2021 -2022 уч.год)"]
[]
["№","Наименование ОУ","5 класс",{"$nulls":3},"6 класс",{"$nulls":3},"7 класс",{"$nulls":3},"8 класс"]
[null,null,"кол-во учащихся всего","кол-во ударников и отличников","успеваемость, %","качество, %","кол-во учащихся всего","кол-во ударников и отличников","успеваемость, %","качество, %","кол-во учащихся всего","кол-во ударников и отличников","успеваемость, %","качество, %","кол-во учащихся всего","кол-во ударников и отличников","успеваемость, %","качество, %"]
[null,"МБОУ \"СОШ №8\"",76,{"$f":"F5/E5*C5","v":76},100,100,73,{"$f":"J5/I5*G5","v":73},100,100,79,{"$f":"N5/M5*K5","v":79},100,100,66,{"$f":"R5/Q5*O5","v":66},100,100]
[]
[null,"исполнитель:","зам. директора по УР Ларина Т.В."]

{"sheet":"музыка","index":26,"n_rows":7,"n_cols":18,"rows_kept":7,"merged":[[0,0,0,17],[2,0,3,0],[2,1,3,1],[2,2,2,5],[2,6,2,9],[2,10,2,13],[2,14,2,17]]}
["Предмет: музыка(2021 -2022 уч.год)"]
[]
["№","Наименование ОУ","5 класс",{"$nulls":3},"6 класс",{"$nulls":3},"7 класс",{"$nulls":3},"8 класс"]
[null,null,"кол-во учащихся всего","кол-во ударников и отличников","успеваемость, %","качество, %","кол-во учащихся всего","кол-во ударников и отличников","успеваемость, %","качество, %","кол-во учащихся всего","кол-во ударников и отличников","успеваемость, %","качество, %","кол-во учащихся всего","кол-во ударников и отличников","успеваемость, %","качество, %"]
[null,"МБОУ \"СОШ №8\"",76,74,100,97.37,73,{"$f":"J5/I5*G5","v":73},100,100,79,{"$f":"N5/M5*K5","v":79},100,100,66,{"$f":"R5/Q5*O5","v":66},100,100]
[]
[null,"исполнитель:","зам. директора по УР Ларина Т.В."]

{"sheet":"ИЗО","index":27,"n_rows":7,"n_cols":14,"rows_kept":7,"merged":[[0,0,0,13],[2,0,3,0],[2,1,3,1],[2,2,2,5],[2,6,2,9],[2,10,2,13]]}
["Предмет: ИЗО(2021 -2022 уч.год)"]
[]
["№","Наименование ОУ","5 класс",{"$nulls":3},"6 класс",{"$nulls":3},"7 класс"]
[null,null,"кол-во учащихся всего","кол-во ударников и отличников","успеваемость, %","качество, %","кол-во учащихся всего","кол-во ударников и отличников","успеваемость, %","качество, %","кол-во учащихся всего","кол-во ударников и отличников","успеваемость, %","качество, %"]
[null,"МБОУ \"СОШ №8\"",76,75,100,98.68,73,71,100,97.26,79,77,100,97.47]
[]
[null,"исполнитель:","зам. директора по УР Ларина Т.В."]

{"sheet":"экология","index":28,"n_rows":7,"n_cols":14,"rows_kept":7,"merged":[[0,0,0,13],[2,0,3,0],[2,1,3,1],[2,2,2,5],[2,6,2,9],[2,10,2,13]]}
["Предмет: экология (2021 -2022 уч.год)"]
[]
["№","Наименование ОУ","10 класс",{"$nulls":3},"11 класс",{"$nulls":3}," "]
[null,null,"кол-во учащихся всего","кол-во ударников и отличников","успеваемость, %","качество, %","кол-во учащихся всего","кол-во ударников и отличников","успеваемость, %","качество, %"," "," "," "," "]
[null,"МБОУ \"СОШ №8\"",26,25,100,96.15,15,15,100,100," "," "," "," "]
[]
[null,"исполнитель:","зам. директора по УР Ларина Т.В."]